bitfinex-derivatives/quotes_BNBF0:USTF0_20250810
["timestamp","ask_amount","ask_price","bid_price","bid_amount"]
[1754798626047,0.366,813.63,812.2,0.96865452]
[1754798626344,0.366,813.63,812.21,0.96865452]
[1754798626646,0.366,813.63,812.22,0.96865452]
[1754798626844,0.292,813.58,812.23,0.96865452]
[1754798627046,0.5,813.57,812.24,0.96865452]
[1754798627244,0.5,813.57,812.25,0.96865452]
[1754798627444,0.5,813.57,812.26,0.96865452]
[1754798627648,0.5,813.57,812.23,2.72690082]
[1754798627842,0.5,813.57,812.24,0.96900271]
[1754798628048,0.26,813.49,812.23,2.72690082]
[1754798628448,0.26,813.49,812.19,2.72690082]
[1754798628648,0.26,813.49,812.2,0.96937641]
[1754798628950,0.26,813.49,812.16,2.72690082]
[1754798629154,0.26,813.49,812.17,0.96951782]
[1754798629349,0.5,813.57,812.18,0.96951782]
[1754798629649,0.8049728,813.56,812.19,0.96951782]
[1754798629848,0.8049728,813.55,812.2,0.96951782]
[1754798630045,0.398,813.63,812.21,0.96951782]
[1754798630245,0.80495471,813.62,812.22,0.96951782]
[1754798630550,0.80495471,813.61,812.23,0.96951782]
[1754798630745,0.29,813.63,812.19,2.72690082]
[1754798630946,0.29,813.63,812.34,2.72690082]
[1754798631750,0.398,813.63,812.34,2.72690082]
[1754798632050,0.5,813.69,812.61,2.72690082]
[1754798632550,0.5,813.69,813.26,1.65575553]
[1754798632751,0.5,813.69,812.67,2.72690082]
[1754798633149,0.5,813.69,812.66,2.72690082]
[1754798633350,0.312,813.74,812.66,2.72690082]
[1754798633750,0.5,813.78,812.71,2.72690082]
[1754798634148,0.312,813.74,812.61,2.72690082]
[1754798634352,0.5,813.78,812.61,2.72690082]
[1754798634749,0.5,813.78,812.68,2.72690082]
[1754798635153,0.5,813.8,812.68,2.72690082]
[1754798635650,0.312,813.81,812.68,2.72690082]
[1754798635854,0.312,813.81,812.67,2.72690082]
[1754798636858,0.312,813.81,812.62,2.72690082]
[1754798638859,0.312,813.81,812.61,2.72690082]
[1754798639158,0.309,813.83,812.61,2.72690082]
[1754798639561,0.5,813.84,812.62,2.72690082]
[1754798639761,0.5,813.91,812.62,2.72690082]
[1754798639960,0.5,813.91,812.64,2.72690082]
[1754798640160,0.21400766,813.93,812.64,2.72690082]
[1754798640563,0.21400766,813.93,812.72,2.72690082]
[1754798641057,0.21400766,813.93,812.67,2.72690082]
[1754798641262,0.321,813.86,812.67,2.72690082]
[1754798641457,0.21400766,813.93,812.67,2.72690082]
[1754798641664,0.21400766,813.93,812.35,3.81766115]
[1754798641857,0.21400766,813.93,812.36,0.98437889]
[1754798642060,0.21400766,813.93,812.37,0.98437889]
[1754798642260,0.21400766,813.93,812.38,0.98437889]
[1754798642459,0.21400766,813.93,812.39,0.98437889]
[1754798642660,0.21400766,813.93,812.4,0.98437889]
[1754798642864,0.21400766,813.93,812.41,0.98437889]
[1754798643065,0.21400766,813.93,812.42,0.98437889]
[1754798643262,0.21400766,813.93,812.31,2.72690082]
[1754798643263,0.21400766,813.93,812.43,0.98437889]
[1754798643465,0.21400766,813.93,812.44,0.98437889]
[1754798643762,0.21400766,813.93,812.45,0.98437889]
[1754798643961,0.21400766,813.93,812.46,0.98437889]
[1754798644169,0.21400766,813.93,812.47,0.98437889]
[1754798644362,0.21400766,813.93,812.48,0.98437889]
[1754798644565,0.21400766,813.93,812.49,0.98437889]
[1754798644766,0.21400766,813.93,812.5,0.98437889]
[1754798645062,0.21400766,813.93,812.51,0.98437889]
[1754798645266,0.21400766,813.93,812.52,0.98437889]
[1754798645461,0.21400766,813.93,812.53,0.98437889]
[1754798645764,0.21400766,813.93,812.54,0.98437889]
[1754798646066,0.21400766,813.93,812.55,0.98437889]
[1754798646266,0.21400766,813.93,812.56,0.98437889]
[1754798646462,0.21400766,813.93,812.57,0.98437889]
[1754798646778,0.21400766,813.93,812.58,0.98437889]
[1754798646967,0.21400766,813.93,812.59,0.98437889]
[1754798647167,0.21400766,813.93,812.2,0.871]
[1754798647168,0.21400766,813.93,812.6,0.98437889]
[1754798647363,0.21400766,813.93,812.61,0.98437889]
[1754798647566,0.21400766,813.93,812.2,0.871]
[1754798647770,0.21400766,813.93,812.69,2.72690082]
[1754798648068,0.21400766,813.93,812.7,0.98099531]
[1754798648264,0.21400766,813.93,812.82,2.72690082]
[1754798648764,0.21400766,813.93,812.76,2.72690082]
[1754798649567,0.21400766,813.93,812.77,0.97978318]
[1754798649765,0.21400766,813.93,812.76,2.72690082]
[1754798649970,0.21400766,813.93,812.71,2.72690082]
[1754798650170,0.21400766,813.93,812.72,0.9798012]
[1754798650372,0.21400766,813.93,812.73,0.9798012]
[1754798650670,0.21400766,813.93,812.74,0.9798012]
[1754798650871,0.21400766,813.93,812.66,2.72690082]
[1754798651067,0.21400766,813.93,812.69,2.72690082]
[1754798651467,0.21400766,813.93,812.35,2.72690082]
[1754798651670,0.21400766,813.93,812.36,0.97898358]
[1754798651869,0.21400766,813.93,812.37,0.97898358]
[1754798652073,0.21400766,813.93,812.38,0.97898358]
[1754798652371,0.21400766,813.93,812.39,0.97898358]
[1754798652670,0.21400766,813.93,812.4,0.97898358]
[1754798652870,0.21400766,813.93,812.31,2.72690082]
[1754798652871,0.21400766,813.93,812.41,0.97898358]
[1754798653174,0.21400766,813.93,812.42,0.97898358]
[1754798653370,0.21400766,813.93,812.43,0.97898358]
[1754798653669,0.21400766,813.93,812.44,0.97898358]
[1754798653870,0.21400766,813.93,812.45,0.97898358]
[1754798654069,0.21400766,813.93,812.46,0.97898358]
[1754798654272,0.21400766,813.93,812.47,0.97898358]
[1754798654572,0.21400766,813.93,812.48,0.97898358]
[1754798654770,0.21400766,813.93,812.49,0.97898358]
[1754798654974,0.21400766,813.93,812.5,0.97898358]
[1754798655169,0.21400766,813.93,812.51,0.97898358]
[1754798655374,0.21400766,813.93,812.52,0.97898358]
[1754798655574,0.21400766,813.93,812.53,0.97898358]
[1754798655772,0.21400766,813.93,812.54,0.97898358]
[1754798655975,0.21400766,813.93,812.55,0.97898358]
[1754798656274,0.21400766,813.93,812.56,0.97898358]
[1754798656475,0.21400766,813.93,812.57,0.97898358]
[1754798656775,0.21400766,813.93,812.58,0.97898358]
[1754798656977,0.21400766,813.93,812.59,0.97898358]
[1754798657275,0.21400766,813.93,812.6,0.97898358]
[1754798657474,0.21400766,813.93,812.21,2.72690082]
[1754798657690,0.21400766,813.93,812.22,0.97829542]
[1754798657871,0.21400766,813.93,812.21,2.72690082]
[1754798657872,0.21400766,813.93,812.23,0.97829542]
[1754798658076,0.21400766,813.93,812.24,0.97829542]
[1754798658276,0.21400766,813.93,812.25,0.97818912]
[1754798658472,0.21400766,813.93,812.26,0.97818912]
[1754798658672,0.21400766,813.93,812.27,0.97818912]
[1754798658874,0.21400766,813.93,812.28,0.97818912]
[1754798659075,0.21400766,813.93,812.2,3.59790082]
[1754798659076,0.21400766,813.93,812.29,0.97818912]
[1754798659274,0.21400766,813.93,812.3,0.97818912]
[1754798659496,0.21400766,813.93,812.2,3.59790082]
[1754798659497,0.21400766,813.93,812.31,0.97818912]
[1754798659675,0.21400766,813.93,812.32,0.97818912]
[1754798659875,0.21400766,813.93,812.33,0.97818912]
[1754798660175,0.21400766,813.93,812.34,0.97818912]
[1754798660476,0.21400766,813.93,812.35,0.97818912]
[1754798660678,0.21400766,813.93,812.36,0.97818912]
[1754798660879,0.21400766,813.93,812.37,0.97818912]
[1754798661075,0.21400766,813.93,812.38,0.97818912]
[1754798661379,0.21400766,813.93,812.39,0.97818912]
[1754798661574,0.21400766,813.93,812.64,2.72690082]
[1754798661774,0.21400766,813.93,812.65,0.97818912]
[1754798661973,0.21400766,813.93,812.66,0.97818912]
[1754798662277,0.21400766,813.93,812.67,0.97818912]
[1754798662473,0.21400766,813.93,812.68,0.97818912]
[1754798662673,0.21400766,813.93,812.69,0.97818912]
[1754798662874,0.21400766,813.93,812.7,0.97818912]
[1754798663075,0.21400766,813.93,812.71,0.97818912]
[1754798663379,0.21400766,813.93,812.72,0.97818912]
[1754798663581,0.21400766,813.93,812.73,0.97818912]
[1754798663775,0.21400766,813.93,812.74,0.97818912]
[1754798663974,0.21400766,813.93,812.75,0.97818912]
[1754798664178,0.21400766,813.93,812.76,0.97818912]
[1754798664482,0.21400766,813.93,812.77,0.97818912]
[1754798664776,0.21400766,813.93,812.78,0.97818912]
[1754798664981,0.21400766,813.93,812.79,0.97818912]
[1754798665177,0.21400766,813.93,812.8,0.97818912]
[1754798665483,0.21400766,813.93,812.81,0.97818912]
[1754798665681,0.21400766,813.93,812.82,0.97818912]
[1754798665976,0.21400766,813.93,812.83,0.97818912]
[1754798666281,0.21400766,813.93,812.84,0.97818912]
[1754798666482,0.21400766,813.93,812.85,0.97818912]
[1754798666786,0.21400766,813.93,812.86,0.97818912]
[1754798667086,0.21400766,813.93,812.87,0.97818912]
[1754798667279,0.21400766,813.93,812.88,0.97818912]
[1754798667579,0.21400766,813.93,812.89,0.97818912]
[1754798667782,0.21400766,813.93,812.9,0.97818912]
[1754798667977,0.21400766,813.93,812.55,2.72690082]
[1754798668282,0.21400766,813.93,812.56,0.97715995]
[1754798668482,0.21400766,813.93,812.57,0.97715995]
[1754798668682,0.21400766,813.93,812.58,0.97715995]
[1754798668883,0.21400766,813.93,812.59,0.97715995]
[1754798669080,0.21400766,813.93,812.6,0.97715995]
[1754798669389,0.21400766,813.93,812.61,0.97715995]
[1754798669583,0.21400766,813.93,812.62,0.97715995]
[1754798669880,0.21400766,813.93,812.63,0.97715995]
[1754798670079,0.21400766,813.93,812.64,0.97715995]
[1754798670283,0.21400766,813.93,812.65,0.97715995]
[1754798670486,0.21400766,813.93,812.66,3.70406077]
[1754798670685,0.21400766,813.93,812.67,0.97715995]
[1754798670884,0.21400766,813.93,812.68,0.97715995]
[1754798671180,0.21400766,813.93,812.69,0.97715995]
[1754798671380,0.21400766,813.93,812.7,0.97715995]
[1754798671583,0.21400766,813.93,812.71,0.97715995]
[1754798671784,0.21400766,813.93,812.72,0.97715995]
[1754798671984,0.21400766,813.93,812.73,0.97715995]
[1754798672285,0.21400766,813.93,812.74,0.97715995]
[1754798672481,0.21400766,813.93,812.75,0.97715995]
[1754798672682,0.21400766,813.93,812.76,0.97715995]
[1754798672885,0.21400766,813.93,812.77,0.97715995]
[1754798673084,0.21400766,813.93,812.51,2.72690082]
[1754798673085,0.21400766,813.93,812.78,0.97715995]
[1754798673385,0.21400766,813.93,812.79,0.97715995]
[1754798673586,0.21400766,813.93,812.8,0.97715995]
[1754798673883,0.21400766,813.93,812.81,0.97715995]
[1754798674085,0.21400766,813.93,812.82,0.97715995]
[1754798674386,0.21400766,813.93,812.83,0.97634932]
[1754798674587,0.21400766,813.93,812.84,0.97634932]
[1754798674882,0.21400766,813.93,812.85,0.97634932]
[1754798675081,0.21400766,813.93,812.86,0.97634932]
[1754798675285,0.21400766,813.93,812.87,0.97634932]
[1754798675493,0.21400766,813.93,812.88,0.97634932]
[1754798675783,0.21400766,813.93,812.89,0.97634932]
[1754798675985,0.21400766,813.93,812.9,0.97634932]
[1754798676185,0.21400766,813.93,812.91,0.97634932]
[1754798676381,0.21400766,813.93,812.92,0.97634932]
[1754798676580,0.21400766,813.93,812.93,0.97634932]
[1754798676783,0.21400766,813.93,812.94,0.97634932]
[1754798676986,0.21400766,813.93,812.95,0.97634932]
[1754798677182,0.21400766,813.93,812.96,0.97634932]
[1754798677382,0.21400766,813.93,812.5,2.72690082]
[1754798677582,0.21400766,813.93,812.51,0.97607751]
[1754798677786,0.21400766,813.93,812.52,0.97607751]
[1754798678085,0.21400766,813.93,812.53,0.97607751]
[1754798678285,0.21400766,813.93,812.54,0.97607751]
[1754798678486,0.21400766,813.93,812.55,0.97607751]
[1754798678683,0.21400766,813.93,812.56,0.97607751]
[1754798678981,0.21400766,813.93,812.57,0.97607751]
[1754798679183,0.21400766,813.93,812.58,0.97607751]
[1754798679381,0.21400766,813.93,812.69,2.72690082]
[1754798679581,0.21400766,813.93,812.7,0.97607751]
[1754798679780,0.21400766,813.93,812.71,0.97607751]
[1754798679983,0.21400766,813.93,812.72,0.97607751]
[1754798680188,0.21400766,813.93,812.73,0.97607751]
[1754798680484,0.21400766,813.93,812.74,0.97607751]
[1754798680686,0.21400766,813.93,812.75,0.97607751]
[1754798680988,0.21400766,813.93,812.85,2.72690082]
[1754798681282,0.21400766,813.93,812.86,0.97607751]
[1754798681481,0.21400766,813.93,812.87,0.97607751]
[1754798681685,0.21400766,813.93,812.88,0.97607751]
[1754798681886,0.21400766,813.93,812.89,0.97607751]
[1754798682088,0.21400766,813.93,812.9,0.97607751]
[1754798682285,0.21400766,813.93,812.91,0.97607751]
[1754798682588,0.21400766,813.93,812.92,0.97607751]
[1754798682788,0.21400766,813.93,812.93,0.97607751]
[1754798683085,0.21400766,813.93,812.94,0.97607751]
[1754798683288,0.21400766,813.93,812.95,0.97607751]
[1754798683485,0.21400766,813.93,812.96,0.97607751]
[1754798683785,0.21400766,813.93,812.88,2.72690082]
[1754798683989,0.21400766,813.93,812.89,0.97660125]
[1754798684186,0.21400766,813.93,812.9,0.97660125]
[1754798684385,0.21400766,813.93,812.91,0.97660125]
[1754798684584,0.21400766,813.93,812.92,0.97660125]
[1754798684785,0.21400766,813.93,812.93,0.97660125]
[1754798685088,0.21400766,813.93,812.94,0.97660125]
[1754798685285,0.21400766,813.93,812.95,0.97660125]
[1754798685486,0.21400766,813.93,812.96,0.97660125]
[1754798685686,0.21400766,813.93,812.97,0.97660125]
[1754798685889,0.21400766,813.93,812.98,0.97660125]
[1754798686089,0.21400766,813.93,812.63,2.72690082]
[1754798686388,0.21400766,813.93,812.64,0.9772771]
[1754798686588,0.21400766,813.93,812.65,0.9772771]
[1754798686889,0.21400766,813.93,812.66,0.9772771]
[1754798687088,0.21400766,813.93,812.67,0.9772771]
[1754798687287,0.21400766,813.93,812.68,0.9772771]
[1754798687491,0.21400766,813.93,812.69,0.9772771]
[1754798687689,0.21400766,813.93,812.7,0.9772771]
[1754798687889,0.21400766,813.93,812.71,0.9772771]
[1754798688086,0.21400766,813.93,812.72,0.9772771]
[1754798688286,0.21400766,813.93,812.73,0.9772771]
[1754798688492,0.21400766,813.93,812.74,0.9772771]
[1754798688692,0.21400766,813.93,812.75,0.9772771]
[1754798688891,0.21400766,813.93,812.76,0.9772771]
[1754798689193,0.21400766,813.93,812.77,0.9772771]
[1754798689391,0.21400766,813.93,812.78,0.9772771]
[1754798689594,0.21400766,813.93,812.79,0.9772771]
[1754798689789,0.21400766,813.93,812.8,0.9772771]
[1754798689989,0.21400766,813.93,812.81,0.9772771]
[1754798690288,0.21400766,813.93,812.82,0.9772771]
[1754798690495,0.21400766,813.93,812.83,0.9772771]
[1754798690692,0.21400766,813.93,812.84,0.9772771]
[1754798690890,0.21400766,813.93,812.85,0.9772771]
[1754798691093,0.21400766,813.93,812.86,0.9772771]
[1754798691393,0.21400766,813.93,812.87,0.9772771]
[1754798691592,0.21400766,813.93,812.88,0.9772771]
[1754798691790,0.21400766,813.93,812.89,0.9772771]
[1754798691991,0.21400766,813.93,812.9,0.9772771]
[1754798692295,0.21400766,813.93,812.91,0.9772771]
[1754798692594,0.21400766,813.93,812.92,0.9772771]
[1754798692794,0.21400766,813.93,812.93,0.9772771]
[1754798692994,0.21400766,813.93,812.94,0.9772771]
[1754798693191,0.21400766,813.93,812.95,0.9772771]
[1754798693392,0.21400766,813.93,812.96,0.97816245]
[1754798693590,0.21400766,813.93,812.97,0.97816245]
[1754798693895,0.21400766,813.93,812.98,0.97816245]
[1754798694195,0.21400766,813.93,812.99,0.97816245]
[1754798694395,0.21400766,813.93,813.0,0.97816245]
[1754798694594,0.21400766,813.93,813.01,0.97816245]
[1754798694796,0.21400766,813.93,813.02,0.97816245]
[1754798695093,0.21400766,813.93,813.03,0.97816245]
[1754798695296,0.21400766,813.93,813.04,0.97816245]
[1754798695491,0.21400766,813.93,813.05,0.97816245]
[1754798695695,0.21400766,813.93,813.06,0.97816245]
[1754798695894,0.21400766,813.93,813.07,0.97816245]
[1754798696094,0.21400766,813.93,813.08,0.97816245]
[1754798696297,0.21400766,813.93,812.88,2.72690082]
[1754798696495,0.21400766,813.93,812.89,0.97838601]
[1754798696697,0.21400766,813.93,812.9,3.70528683]
[1754798696898,0.21400766,813.93,812.91,0.97838601]
[1754798697099,0.21400766,813.93,812.92,0.97838601]
[1754798697300,0.21400766,813.93,812.93,0.97838601]
[1754798697599,0.21400766,813.93,812.94,0.97838601]
[1754798697794,0.21400766,813.93,812.95,0.97838601]
[1754798697997,0.21400766,813.93,812.96,0.97838601]
[1754798698198,0.21400766,813.93,812.97,0.97838601]
[1754798698394,0.21400766,813.93,812.98,0.97838601]
[1754798698598,0.21400766,813.93,812.99,0.97838601]
[1754798698798,0.21400766,813.93,813.0,0.97838601]
[1754798698997,0.21400766,813.93,813.01,0.97838601]
[1754798699199,0.21400766,813.93,813.02,0.97838601]
[1754798699399,0.21400766,813.93,813.03,0.97838601]
[1754798699600,0.21400766,813.93,813.04,0.97838601]
[1754798699798,0.21400766,813.93,813.05,0.97838601]
[1754798699997,0.21400766,813.93,813.06,0.97838601]
[1754798700302,0.21400766,813.93,813.07,0.97838601]
[1754798700497,0.21400766,813.93,813.08,0.97838601]
[1754798700696,0.31,814.59,812.98,2.72690082]
[1754798700697,0.417,814.59,813.09,0.97838601]
[1754798700898,0.21397213,813.93,813.1,0.97838601]
[1754798701097,0.29,814.31,812.9,2.72690082]
[1754798701300,0.21398069,813.86,812.91,0.97936513]
[1754798701501,0.21398069,813.86,813.13,2.72690082]
[1754798701701,1.64668477,815.47,813.13,2.72690082]
[1754798701702,0.289,814.5,813.13,2.72690082]
[1754798701900,0.21393925,813.86,813.13,2.72690082]
[1754798702100,0.289,814.5,813.0,2.72690082]
[1754798702397,0.21398134,813.86,813.01,0.97970915]
[1754798702702,0.289,814.5,813.02,0.97970915]
[1754798702897,0.21398924,813.86,813.03,0.97970915]
[1754798703101,0.289,814.5,813.04,0.97970915]
[1754798703302,0.289,814.5,813.05,0.97970915]
[1754798703500,0.21398792,813.86,813.06,0.97970915]
[1754798703709,0.21398792,813.86,813.01,2.72690082]
[1754798703710,0.289,814.5,813.07,0.97970915]
[1754798703905,0.21398595,813.86,813.08,0.97970915]
[1754798704106,0.21398595,813.86,812.64,3.81766115]
[1754798704107,0.21398595,813.86,812.96,2.72690082]
[1754798704404,0.21400635,813.7,812.96,2.72690082]
[1754798704607,0.21400635,813.7,812.95,2.72690082]
[1754798704807,0.21400635,813.7,812.96,0.98022112]
[1754798705001,0.21400635,813.7,812.95,2.72690082]
[1754798705205,0.21400635,813.7,812.92,2.72690082]
[1754798705706,0.21400635,813.7,812.94,2.72690082]
[1754798706405,0.21400635,813.7,812.96,2.72690082]
[1754798706804,0.21400635,813.7,813.13,2.72690082]
[1754798707806,0.21400635,813.7,813.14,2.72690082]
[1754798708812,0.21400635,813.7,812.87,2.72690082]
[1754798709111,0.21400635,813.7,812.88,0.98041898]
[1754798709415,0.21400635,813.7,812.57,2.72690082]
[1754798709712,0.21400635,813.7,812.58,0.98065959]
[1754798709909,0.21400635,813.7,812.59,0.98065959]
[1754798710111,0.21400635,813.7,812.6,0.98065959]
[1754798710309,0.21400635,813.7,812.61,0.98065959]
[1754798710514,0.21400635,813.7,812.62,0.98065959]
[1754798710811,0.21400635,813.7,812.63,0.98065959]
[1754798711015,0.21400635,813.7,812.64,0.98065959]
[1754798711215,0.21400635,813.7,812.65,0.98065959]
[1754798711411,0.21400635,813.7,812.66,3.70756041]
[1754798711616,0.21400635,813.7,812.67,0.98065959]
[1754798711915,0.21400635,813.7,812.66,2.72690082]
[1754798711916,0.21400635,813.7,812.68,0.98065959]
[1754798712116,0.21400635,813.7,812.69,0.98065959]
[1754798712316,0.21400635,813.7,812.7,0.98065959]
[1754798712515,0.21400635,813.7,812.71,0.98065959]
[1754798712715,0.21400635,813.7,812.72,0.98065959]
[1754798713011,0.21400635,813.7,812.73,0.98072791]
[1754798713216,0.21400635,813.7,812.74,0.98072791]
[1754798713416,0.21400635,813.7,812.75,0.98072791]
[1754798713615,0.21400635,813.7,812.76,0.98072791]
[1754798713817,0.21400635,813.7,812.77,0.98072791]
[1754798714118,0.21400635,813.7,812.78,0.98072791]
[1754798714318,0.21400635,813.7,812.79,0.98072791]
[1754798714514,0.21400635,813.7,812.8,0.98072791]
[1754798714715,0.21400635,813.7,812.81,0.98072791]
[1754798714913,0.21400635,813.7,812.82,0.98072791]
[1754798715119,0.21400635,813.7,812.83,0.98072791]
[1754798715317,0.21400635,813.7,812.84,0.98072791]
[1754798715620,0.21400635,813.7,812.85,0.98072791]
[1754798715920,0.21400635,813.7,812.86,0.98072791]
[1754798716120,0.21400635,813.7,812.87,0.98072791]
[1754798716418,0.21400635,813.7,812.88,0.98072791]
[1754798716619,0.21400635,813.7,812.89,0.98072791]
[1754798716814,0.21400635,813.7,812.9,0.98072791]
[1754798717021,0.21400635,813.7,812.64,2.72690082]
[1754798717317,0.21400635,813.7,812.88,2.72690082]
[1754798717515,0.21400635,813.7,812.89,0.98178646]
[1754798717817,0.21400635,813.7,812.9,0.98178646]
[1754798718115,0.21400635,813.7,812.91,0.98178646]
[1754798718320,0.21400635,813.7,812.92,0.98178646]
[1754798718521,0.21400635,813.7,812.93,0.98178646]
[1754798718721,0.21400635,813.7,812.94,0.98178646]
[1754798718916,0.21400635,813.7,812.95,0.98178646]
[1754798719216,0.21400635,813.7,812.56,2.72690082]
[1754798719423,0.21400635,813.7,812.57,0.9819222]
[1754798719721,0.21400635,813.7,812.58,0.9819222]
[1754798719917,0.21400635,813.7,812.59,0.9819222]
[1754798720122,0.21400635,813.7,812.6,0.9819222]
[1754798720319,0.21400635,813.7,812.61,0.9819222]
[1754798720518,0.21400635,813.7,812.62,0.9819222]
[1754798720718,0.21400635,813.7,812.63,0.9819222]
[1754798720922,0.21400635,813.7,812.68,2.72690082]
[1754798721118,0.21400635,813.7,812.69,0.9819222]
[1754798721419,0.21400635,813.7,812.7,3.70882302]
[1754798721619,0.21400635,813.7,812.71,0.9819222]
[1754798721821,0.21400635,813.7,812.72,0.9819222]
[1754798722021,0.21400635,813.7,812.73,0.9819222]
[1754798722224,0.21400635,813.7,812.74,0.9819222]
[1754798722424,0.21400635,813.7,812.75,0.9819222]
[1754798722724,0.21400635,813.7,812.62,2.72690082]
[1754798723024,0.21400635,813.7,812.99,2.72690082]
[1754798723420,0.21400635,813.7,812.88,2.72690082]
[1754798723821,0.21400635,813.7,812.87,2.72690082]
[1754798724422,0.21400635,813.7,812.88,2.72690082]
[1754798725025,0.21400635,813.7,812.91,2.72690082]
[1754798725425,0.21400635,813.7,812.92,2.72690082]
[1754798726127,0.21400635,813.7,812.9,2.72690082]
[1754798726526,0.21400635,813.7,812.74,2.72690082]
[1754798727526,0.21400635,813.7,812.73,2.72690082]
[1754798728524,0.21400635,813.7,812.72,2.72690082]
[1754798728728,0.21400635,813.7,812.73,0.98214238]
[1754798728923,0.21400635,813.7,812.72,2.72690082]
[1754798729225,0.21400635,813.7,812.73,0.98212873]
[1754798729423,0.21400635,813.7,812.72,2.72690082]
[1754798729628,0.21400635,813.7,812.73,0.98197855]
[1754798729823,0.21400635,813.7,812.7,2.72690082]
[1754798730027,0.21400635,813.7,812.71,0.98204153]
[1754798730228,0.21400635,813.7,812.72,0.98204153]
[1754798730428,0.21400635,813.7,812.73,0.98204153]
[1754798730625,0.21400635,813.7,812.69,2.72690082]
[1754798731127,0.21400635,813.7,812.66,2.72690082]
[1754798731429,0.21400635,813.7,812.67,0.98180568]
[1754798731625,0.21400635,813.7,812.68,0.98180568]
[1754798731830,0.21400635,813.7,812.69,0.98180568]
[1754798732028,0.21400635,813.7,812.64,2.72690082]
[1754798732226,0.21400635,813.7,812.65,0.98175514]
[1754798732430,0.21400635,813.7,812.64,2.72690082]
[1754798732431,0.21400635,813.7,812.66,0.98175514]
[1754798732626,0.21400635,813.7,812.67,3.70865596]
[1754798732832,0.21400635,813.7,812.67,2.72690082]
[1754798733131,0.21400635,813.7,812.66,2.72690082]
[1754798733528,0.21400635,813.7,812.67,0.98159118]
[1754798733831,0.21400635,813.7,812.67,2.72690082]
[1754798734228,0.21400635,813.7,812.68,0.98147485]
[1754798734430,0.21400635,813.7,812.69,0.98147485]
[1754798734629,0.21400635,813.7,812.7,0.98147485]
[1754798734832,0.21400635,813.7,812.72,2.72690082]
[1754798735029,0.21400635,813.7,812.73,0.98147485]
[1754798735231,0.21400635,813.7,812.74,0.98147485]
[1754798735532,0.21400635,813.7,812.75,0.98147485]
[1754798735730,0.21400635,813.7,812.76,0.98147485]
[1754798736030,0.21400635,813.7,812.77,0.98147485]
[1754798736233,0.21400635,813.7,812.78,0.98147485]
[1754798736532,0.21400635,813.7,812.79,0.98147485]
[1754798736833,0.21400635,813.7,812.8,0.98147485]
[1754798737034,0.21400635,813.7,812.81,0.98147485]
[1754798737235,0.21400635,813.7,812.82,0.98147485]
[1754798737434,0.21400635,813.7,812.73,2.72690082]
[1754798737632,0.21400635,813.7,812.74,0.98099432]
[1754798737835,0.21400635,813.7,812.75,0.98099432]
[1754798738032,0.21400635,813.7,812.76,0.98099432]
[1754798738235,0.21400635,813.7,812.77,0.98099432]
[1754798738433,0.21400635,813.7,812.78,0.98099432]
[1754798738637,0.21400635,813.7,812.79,0.98099432]
[1754798738835,0.21400635,813.7,812.8,0.98099432]
[1754798739032,0.21400635,813.7,812.73,2.72690082]
[1754798739033,0.21400635,813.7,812.81,0.98099432]
[1754798739235,0.21400635,813.7,812.82,0.98099432]
[1754798739434,0.21400635,813.7,812.73,2.72690082]
[1754798739737,0.21400635,813.7,812.74,0.98042592]
[1754798739934,0.21400635,813.7,812.75,0.98042592]
[1754798740134,0.21400635,813.7,812.76,0.98042592]
[1754798740333,0.21400635,813.7,812.77,0.98042592]
[1754798740536,0.21400635,813.7,812.78,0.98042592]
[1754798740735,0.21400635,813.7,812.79,0.98042592]
[1754798740938,0.21400635,813.7,812.73,2.72690082]
[1754798741534,0.21400635,813.7,812.39,3.81766115]
[1754798741535,0.21400635,813.7,812.72,2.72690082]
[1754798742237,0.21400635,813.7,812.74,2.72690082]
[1754798743238,0.21400635,813.7,812.63,2.72690082]
[1754798743539,0.21400635,813.7,812.64,0.9801953]
[1754798743742,0.21400635,813.7,812.66,2.72690082]
[1754798743938,0.21400635,813.7,812.67,0.9801953]
[1754798744142,0.21400635,813.7,812.77,2.72690082]
[1754798744843,0.21400635,813.7,812.78,2.72690082]
[1754798745341,0.21400635,813.7,812.79,2.72690082]
[1754798746740,0.21400635,813.7,812.76,2.72690082]
[1754798748340,0.21400635,813.7,812.75,2.72690082]
[1754798748946,0.21400635,813.7,812.76,2.72690082]
[1754798749941,0.21400635,813.7,812.75,2.72690082]
[1754798750447,0.21400635,813.7,812.73,2.72690082]
[1754798750844,0.21400635,813.7,812.74,0.97986905]
[1754798751143,0.21400635,813.7,812.75,0.97986905]
[1754798751347,0.21400635,813.7,812.76,0.97986905]
[1754798751544,0.21400635,813.7,812.77,0.97986905]
[1754798751749,0.21400635,813.7,812.78,0.97986905]
[1754798751949,0.21400635,813.7,812.79,0.97986905]
[1754798752149,0.21400635,813.7,812.8,0.97986905]
[1754798752446,0.21400635,813.7,812.67,2.72690082]
[1754798752648,0.21400635,813.7,812.68,0.98046709]
[1754798752945,0.21400635,813.7,812.69,0.98046709]
[1754798753145,0.21400635,813.7,812.7,0.98046709]
[1754798753346,0.21400635,813.7,812.71,0.98046709]
[1754798753549,0.21400635,813.7,812.72,0.98046709]